fUSD/lending_fUSD_20250519
["ID","MTS","AMOUNT","RATE_DAILY","PERIOD"]
[361582207,1747623064162,-400.0,0.00013917,2]
[361582208,1747623064172,-401.62,0.00013917,2]
[361582209,1747623064181,-400.0,0.00013917,2]
[361582210,1747623064190,-400.0,0.00013917,2]
[361582211,1747623064199,-400.0,0.00013917,2]
[361582212,1747623064209,-478.85,0.00013917,2]
[361582213,1747623064219,-400.0,0.00013917,2]
[361582214,1747623064229,-271.03859875,0.00013917,2]
[361582215,1747623064238,-400.0,0.00013917,2]
[361582216,1747623064248,-495.91,0.00013917,2]
[361582217,1747623064258,-400.0,0.00013917,2]
[361582218,1747623064268,-407.01906639,0.00013917,2]
[361582219,1747623064278,-201.04298743,0.00013917,2]
[361582220,1747623064288,-529.33,0.00013917,2]
[361582221,1747623064298,-400.0,0.00013917,2]
[361582222,1747623064307,-430.94064255,0.00013917,2]
[361582223,1747623064318,-400.0,0.00013917,2]
[361582224,1747623064329,-219.6230941,0.00013917,2]
[361582225,1747623064339,-400.0,0.00013917,2]
[361582226,1747623064348,-400.0,0.00013917,2]
[361582227,1747623064358,-400.0,0.00013917,2]
[361582228,1747623064369,-400.0,0.00013917,2]
[361582229,1747623064378,-400.0,0.00013917,2]
[361582230,1747623064389,-1000.0,0.00013917,2]
[361582231,1747623064398,-400.0,0.00013917,2]
[361582232,1747623064408,-450.35,0.00013917,2]
[361582233,1747623064418,-400.0,0.00013917,2]
[361582234,1747623064428,-400.0,0.00013917,2]
[361582235,1747623064438,-400.0,0.00013917,2]
[361582236,1747623064447,-400.0,0.00013917,2]
[361582237,1747623064457,-400.0,0.00013917,2]
[361582238,1747623064467,-400.0,0.00013917,2]
[361582239,1747623064477,-400.0,0.00013917,2]
[361582240,1747623064487,-400.0,0.00013917,2]
[361582241,1747623064497,-400.0,0.00013917,2]
[361582242,1747623064506,-400.0,0.00013917,2]
[361582243,1747623064864,-400.0,0.00013917,2]
[361582244,1747623064874,-400.0,0.00013917,2]
[361582245,1747623064884,-400.0,0.00013917,2]
[361582246,1747623064894,-586.99,0.00013917,2]
[361582247,1747623064903,-400.0,0.00013917,2]
[361582248,1747623064913,-582.81,0.00013917,2]
[361582249,1747623064922,-400.0,0.00013917,2]
[361582250,1747623064931,-430.3,0.00013917,2]
[361582251,1747623064941,-400.0,0.00013917,2]
[361582252,1747623064950,-151.0,0.00013917,2]
[361582253,1747623064960,-165.90964589,0.00013917,2]
[361582254,1747623064969,-402.22530097,0.00013917,2]
[361582255,1747623064984,-400.0,0.00013917,2]
[361582256,1747623064993,-400.0,0.00013917,2]
[361582257,1747623065004,-400.0,0.00013917,2]
[361582258,1747623065014,-451.25449603,0.00013917,2]
[361582259,1747623065025,-151.0,0.00013917,2]
[361582260,1747623065034,-400.0,0.00013917,2]
[361582261,1747623065044,-151.0,0.00013917,2]
[361582262,1747623065055,-400.0,0.00013917,2]
[361582263,1747623065065,-151.0,0.00013917,2]
[361582264,1747623065076,-400.0,0.00013917,2]
[361582265,1747623065086,-400.0,0.00013917,2]
[361582266,1747623065096,-151.0,0.00013917,2]
[361582267,1747623065105,-557.79,0.00013917,2]
[361582268,1747623065115,-400.0,0.00013917,2]
[361582269,1747623065124,-400.0,0.00013917,2]
[361582270,1747623065134,-400.0,0.00013917,2]
[361582271,1747623065144,-400.0,0.00013917,2]
[361582272,1747623065153,-400.0,0.00013917,2]
[361582273,1747623065162,-400.0,0.00013917,2]
[361582274,1747623065172,-291.44937885,0.00013917,2]
[361582275,1747623065182,-719.99,0.00013917,2]
[361582276,1747623065191,-400.0,0.00013917,2]
[361582277,1747623065200,-338.05665677,0.00013917,2]
[361582278,1747623065210,-400.0,0.00013917,2]
[361582279,1747623065220,-400.0,0.00013917,2]
[361582280,1747623065229,-400.0,0.00013917,2]
[361582281,1747623065239,-400.0,0.00013917,2]
[361582282,1747623065248,-209.939039,0.00013917,2]
[361582283,1747623065258,-400.47,0.00013917,2]
[361582284,1747623065269,-400.0,0.00013917,2]
[361582285,1747623065279,-209.939039,0.00013917,2]
[361582286,1747623065288,-210.115832,0.00013917,2]
[361582287,1747623065299,-400.0,0.00013917,2]
[361582288,1747623065309,-420.76589711,0.00013917,2]
[361582289,1747623065318,-400.0,0.00013917,2]
[361582290,1747623065329,-210.115832,0.00013917,2]
[361582291,1747623065338,-400.0,0.00013917,2]
[361582292,1747623065347,-151.0,0.00013917,2]
[361582293,1747623065357,-400.0,0.00013917,2]
[361582294,1747623065366,-158.401267,0.00013917,2]
[361582295,1747623065376,-668.16,0.00013917,2]
[361582296,1747623065386,-400.0,0.00013917,2]
[361582297,1747623065395,-151.0,0.00013917,2]
[361582298,1747623065405,-400.0,0.00013917,2]
[361582299,1747623065415,-400.0,0.00013917,2]
[361582300,1747623065424,-400.0,0.00013917,2]
[361582301,1747623065434,-400.0,0.00013917,2]
[361582302,1747623065444,-556.62,0.00013917,2]
[361582303,1747623065453,-537.72,0.00013917,2]
[361582304,1747623065462,-744.3,0.00013917,2]
[361582305,1747623065472,-400.0,0.00013917,2]
[361582306,1747623065481,-400.0,0.00013917,2]
[361582307,1747623065490,-400.0,0.00013917,2]
[361582308,1747623065500,-400.0,0.00013917,2]
[361582309,1747623065510,-400.0,0.00013917,2]
[361582310,1747623065520,-400.0,0.00013917,2]
[361582311,1747623065529,-565.63,0.00013917,2]
[361582312,1747623065539,-400.0,0.00013917,2]
[361582313,1747623065548,-400.0,0.00013917,2]
[361582314,1747623065557,-298.35399102,0.00013917,2]
[361582315,1747623065567,-400.0,0.00013917,2]
[361582316,1747623065576,-400.0,0.00013917,2]
[361582317,1747623065585,-400.0,0.00013917,2]
[361582318,1747623065595,-400.0,0.00013917,2]
[361582319,1747623065604,-400.0,0.00013917,2]
[361582320,1747623065614,-338.41129297,0.00013917,2]
[361582321,1747623065623,-400.0,0.00013917,2]
[361582322,1747623065633,-515.74112988,0.00013917,2]
[361582323,1747623065642,-400.0,0.00013917,2]
[361582324,1747623065651,-541.29,0.00013917,2]
[361582325,1747623065662,-400.0,0.00013917,2]
[361582326,1747623065671,-400.0,0.00013917,2]
[361582327,1747623065681,-400.0,0.00013917,2]
[361582328,1747623065691,-489.66,0.00013917,2]
[361582329,1747623065703,-400.0,0.00013917,2]
[361582330,1747623065713,-400.0,0.00013917,2]
[361582331,1747623065723,-408.89044649,0.00013917,2]
[361582332,1747623065735,-400.0,0.00013917,2]
[361582333,1747623065746,-400.0,0.00013917,2]
[361582334,1747623065757,-724.44,0.00013917,2]
[361582335,1747623065767,-151.0,0.00013917,2]
[361582336,1747623065777,-400.0,0.00013917,2]
[361582337,1747623065787,-530.18,0.00013917,2]
[361582338,1747623065796,-400.0,0.00013917,2]
[361582339,1747623065806,-400.0,0.00013917,2]
[361582340,1747623065815,-400.0,0.00013917,2]
[361582341,1747623065825,-987.94,0.00013917,2]
[361582342,1747623065835,-400.0,0.00013917,2]
[361582343,1747623065845,-400.0,0.00013917,2]
[361582344,1747623065854,-151.0,0.00013917,2]
[361582345,1747623065863,-151.495514,0.00013917,2]
[361582346,1747623065873,-400.0,0.00013917,2]
[361582347,1747623065882,-155.74341596,0.00013917,2]
[361582348,1747623065892,-400.0,0.00013917,2]
[361582349,1747623065902,-400.0,0.00013917,2]
[361582350,1747623065911,-454.91,0.00013917,2]
[361582351,1747623065920,-400.0,0.00013917,2]
[361582352,1747623065929,-400.0,0.00013917,2]
[361582353,1747623065938,-388.20304023,0.00013917,2]
[361582354,1747623065947,-607.06,0.00013917,2]
[361582355,1747623065956,-400.0,0.00013917,2]
[361582356,1747623065966,-151.0,0.00013917,2]
[361582357,1747623065979,-715.85,0.00013917,2]
[361582358,1747623065988,-400.0,0.00013917,2]
[361582359,1747623065997,-400.0,0.00013917,2]
[361582360,1747623066007,-522.83,0.00013917,2]
[361582361,1747623066017,-791.21,0.00013917,2]
[361582362,1747623066027,-151.0,0.00013917,2]
[361582363,1747623066037,-754.24,0.00013917,2]
[361582364,1747623066047,-832.11,0.00013917,2]
[361582365,1747623066064,-400.0,0.00013917,2]
[361582366,1747623066074,-400.0,0.00013917,2]
[361582367,1747623066084,-150.89932209,0.00013917,2]
[361582368,1747623066094,-1195.11,0.00013917,2]
[361582369,1747623066104,-400.0,0.00013917,2]
[361582370,1747623066116,-400.0,0.00013917,2]
[361582371,1747623066126,-400.0,0.00013917,2]
[361582372,1747623066139,-403.16,0.00013917,2]
[361582373,1747623066150,-527.03,0.00013917,2]
[361582374,1747623066161,-423.46,0.00013917,2]
[361582375,1747623066170,-400.0,0.00013917,2]
[361582376,1747623066180,-151.0,0.00013917,2]
[361582377,1747623066191,-498.94,0.00013917,2]
[361582378,1747623066201,-400.0,0.00013917,2]
[361582379,1747623066212,-1110.94,0.00013917,2]
[361582380,1747623066222,-810.62,0.00013917,2]
[361582381,1747623066232,-400.0,0.00013917,2]
[361582382,1747623066241,-543.18,0.00013917,2]
[361582383,1747623066251,-1418.91,0.00013917,2]
[361582384,1747623066261,-151.0,0.00013917,2]
[361582385,1747623066272,-151.0,0.00013917,2]
[361582386,1747623066281,-822.31,0.00013917,2]
[361582387,1747623066291,-866.95,0.00013917,2]
[361582388,1747623066300,-400.0,0.00013917,2]
[361582389,1747623066309,-588.09,0.00013917,2]
[361582390,1747623066319,-616.69,0.00013917,2]
[361582391,1747623066329,-658.95,0.00013917,2]
[361582392,1747623066338,-152.398356,0.00013917,2]
[361582393,1747623066348,-611.23,0.00013917,2]
[361582394,1747623066357,-1048.59,0.00013917,2]
[361582395,1747623066366,-569.94,0.00013917,2]
[361582396,1747623066376,-400.0,0.00013917,2]
[361582397,1747623066385,-486.51,0.00013917,2]
[361582398,1747623066394,-400.0,0.00013917,2]
[361582399,1747623066404,-917.85,0.00013917,2]
[361582400,1747623066413,-489.25,0.00013917,2]
[361582401,1747623066422,-532.98,0.00013917,2]
[361582402,1747623066432,-768.93,0.00013917,2]
[361582403,1747623066442,-400.0,0.00013917,2]
[361582404,1747623066451,-1246.99,0.00013917,2]
[361582405,1747623066461,-477.65,0.00013917,2]
[361582406,1747623066470,-486.64,0.00013917,2]
[361582407,1747623066480,-400.0,0.00013917,2]
[361582408,1747623066489,-448.24,0.00013917,2]
[361582409,1747623066499,-654.72,0.00013917,2]
[361582410,1747623066508,-517.77,0.00013917,2]
[361582411,1747623066518,-400.0,0.00013917,2]
[361582412,1747623066528,-427.63,0.00013917,2]
[361582413,1747623066538,-490.0,0.00013917,2]
[361582414,1747623066547,-951.09,0.00013917,2]
[361582415,1747623066557,-446.88,0.00013917,2]
[361582416,1747623066566,-893.02,0.00013917,2]
[361582417,1747623066575,-400.0,0.00013917,2]
[361582418,1747623066585,-400.0,0.00013917,2]
[361582419,1747623066595,-723.93,0.00013917,2]
[361582420,1747623066604,-400.0,0.00013917,2]
[361582421,1747623066613,-606.7,0.00013917,2]
[361582422,1747623066623,-400.0,0.00013917,2]
[361582423,1747623066632,-777.47,0.00013917,2]
[361582424,1747623066642,-400.0,0.00013917,2]
[361582425,1747623066651,-464.98,0.00013917,2]
[361582426,1747623066660,-572.73,0.00013917,2]
[361582427,1747623066670,-476.26,0.00013917,2]
[361582428,1747623066679,-151.0,0.00013917,2]
[361582429,1747623066688,-400.0,0.00013917,2]
[361582430,1747623066698,-400.0,0.00013917,2]
[361582431,1747623066708,-1307.16,0.00013917,2]
[361582432,1747623066718,-819.51,0.00013917,2]
[361582433,1747623066729,-400.0,0.00013917,2]
[361582434,1747623066739,-1229.58,0.00013917,2]
[361582435,1747623066749,-400.0,0.00013917,2]
[361582436,1747623066759,-400.0,0.00013917,2]
[361582437,1747623066768,-595.39,0.00013917,2]
[361582438,1747623066777,-599.62,0.00013917,2]
[361582439,1747623066787,-704.56,0.00013917,2]
[361582440,1747623066797,-405.18,0.00013917,2]
[361582441,1747623066806,-803.15,0.00013917,2]
[361582442,1747623066816,-400.0,0.00013917,2]
[361582443,1747623066825,-400.0,0.00013917,2]
[361582444,1747623066835,-1231.44,0.00013917,2]
[361582445,1747623066844,-830.38,0.00013917,2]
[361582446,1747623066854,-1242.33,0.00013917,2]
[361582447,1747623066863,-598.88,0.00013917,2]
[361582448,1747623066873,-151.0,0.00013917,2]
[361582449,1747623066882,-643.43,0.00013917,2]
[361582450,1747623066892,-151.0,0.00013917,2]
[361582451,1747623066901,-400.0,0.00013917,2]
[361582452,1747623066911,-615.84,0.00013917,2]
[361582453,1747623066920,-1129.35,0.00013917,2]
[361582454,1747623066930,-151.0,0.00013917,2]
[361582455,1747623066940,-151.0,0.00013917,2]
[361582456,1747623066950,-509.06,0.00013917,2]
[361582457,1747623066959,-400.0,0.00013917,2]
[361582458,1747623066970,-400.0,0.00013917,2]
[361582459,1747623066984,-509.68,0.00013917,2]
[361582460,1747623066994,-2309.65,0.00013917,2]
[361582461,1747623067003,-151.0,0.00013917,2]
[361582462,1747623067012,-151.0,0.00013917,2]
[361582463,1747623067024,-541.91,0.00013917,2]
[361582464,1747623067033,-400.0,0.00013917,2]
[361582465,1747623067043,-1559.31,0.00013917,2]
[361582466,1747623067055,-152.04586,0.00013917,2]
[361582467,1747623067066,-400.0,0.00013917,2]
[361582468,1747623067076,-400.0,0.00013917,2]
[361582469,1747623067086,-1519.6,0.00013917,2]
[361582470,1747623067096,-151.0,0.00013917,2]
[361582471,1747623067106,-151.0,0.00013917,2]
[361582472,1747623067115,-885.17,0.00013917,2]
[361582473,1747623067124,-400.0,0.00013917,2]
[361582474,1747623067134,-151.0,0.00013917,2]
[361582475,1747623067143,-151.0,0.00013917,2]
[361582476,1747623067152,-693.97,0.00013917,2]
[361582477,1747623067162,-1398.54,0.00013917,2]
[361582478,1747623067171,-151.0,0.00013917,2]
[361582479,1747623067181,-151.0,0.00013917,2]
[361582480,1747623067190,-467.24,0.00013917,2]
[361582481,1747623067199,-460.65,0.00013917,2]
[361582482,1747623067208,-553.34,0.00013917,2]
[361582483,1747623067219,-982.28,0.00013917,2]
[361582484,1747623067229,-794.06,0.00013917,2]
[361582485,1747623067317,-611.77,0.00013917,2]
[361582486,1747623067327,-496.06,0.00013917,2]
[361582487,1747623067337,-1023.73,0.00013917,2]
[361582488,1747623067346,-151.0,0.00013917,2]
[361582489,1747623067354,-151.0,0.00013917,2]
[361582490,1747623067362,-400.0,0.00013917,2]
[361582491,1747623067372,-400.0,0.00013917,2]
[361582492,1747623067383,-1100.17,0.00013917,2]
[361582493,1747623067392,-400.0,0.00013917,2]
[361582494,1747623067402,-871.88,0.00013917,2]
[361582495,1747623067411,-215.12848967,0.00013917,2]
[361582496,1747623067420,-400.0,0.00013917,2]
[361582497,1747623067429,-615.34,0.00013917,2]
[361582498,1747623067439,-400.0,0.00013917,2]
[361582499,1747623067449,-400.0,0.00013917,2]
[361582500,1747623067458,-288.362575,0.00013917,2]
[361582501,1747623067468,-288.362575,0.00013917,2]
[361582502,1747623067477,-1216.52,0.00013917,2]
[361582503,1747623067486,-400.0,0.00013917,2]
[361582504,1747623067496,-1191.65,0.00013917,2]
[361582505,1747623067505,-288.362575,0.00013917,2]
[361582506,1747623067514,-288.362575,0.00013917,2]
[361582507,1747623067523,-1267.17,0.00013917,2]
[361582508,1747623067533,-400.0,0.00013917,2]
[361582509,1747623067542,-1040.38,0.00013917,2]
[361582510,1747623067552,-1600.19,0.00013917,2]
[361582511,1747623067562,-400.0,0.00013917,2]
[361582512,1747623067571,-400.0,0.00013917,2]
[361582513,1747623067580,-400.0,0.00013917,2]
[361582514,1747623067589,-455.87892558,0.00013917,2]
[361582515,1747623067599,-400.0,0.00013917,2]
[361582516,1747623067607,-400.0,0.00013917,2]
[361582517,1747623067617,-400.0,0.00013917,2]
[361582518,1747623067626,-400.0,0.00013917,2]
[361582519,1747623067636,-693.88,0.00013917,2]
[361582520,1747623067646,-690.57,0.00013917,2]
[361582521,1747623067655,-943.64,0.00013917,2]
[361582522,1747623067665,-425.96,0.00013917,2]
[361582523,1747623067674,-677.73,0.00013917,2]
[361582524,1747623067684,-461.2,0.00013917,2]
[361582525,1747623067693,-400.0,0.00013917,2]
[361582526,1747623067703,-400.0,0.00013917,2]
[361582527,1747623067712,-450.35,0.00013917,2]
[361582528,1747623067721,-151.0,0.00013917,2]
[361582529,1747623067730,-151.0,0.00013917,2]
[361582530,1747623067740,-400.0,0.00013917,2]
[361582531,1747623067749,-545.69,0.00013917,2]
[361582532,1747623067759,-400.0,0.00013917,2]
[361582533,1747623067768,-410.09389637,0.00013917,2]
[361582534,1747623067777,-151.0,0.00013917,2]
[361582535,1747623067787,-395.4085367,0.00013917,2]
[361582536,1747623067797,-151.0,0.00013917,2]
[361582537,1747623067806,-300.26846619,0.00013917,2]
[361582538,1747623067816,-400.0,0.00013917,2]
[361582539,1747623067825,-851.72,0.00013917,2]
[361582540,1747623067836,-477.96,0.00013917,2]
[361582541,1747623067846,-400.0,0.00013917,2]
[361582542,1747623067855,-151.0,0.00013917,2]
[361582543,1747623067864,-151.0,0.00013917,2]
[361582544,1747623067874,-608.65,0.00013917,2]
[361582545,1747623067884,-400.0,0.00013917,2]
[361582546,1747623067893,-400.0,0.00013917,2]
[361582547,1747623067903,-400.0,0.00013917,2]
[361582548,1747623067912,-671.18,0.00013917,2]
[361582549,1747623067922,-1007.82,0.00013917,2]
[361582550,1747623067931,-400.0,0.00013917,2]
[361582551,1747623067940,-400.0,0.00013917,2]
[361582552,1747623067949,-400.0,0.00013917,2]
[361582553,1747623067959,-400.0,0.00013917,2]
[361582554,1747623067969,-400.0,0.00013917,2]
[361582555,1747623067983,-400.0,0.00013917,2]
[361582556,1747623067992,-151.0,0.00013917,2]
[361582557,1747623068002,-164.48567,0.00013917,2]
[361582558,1747623068010,-191.098067,0.00013917,2]
[361582559,1747623068021,-1147.48,0.00013917,2]
[361582560,1747623068030,-191.098067,0.00013917,2]
[361582561,1747623068040,-832.17,0.00013917,2]
[361582562,1747623068049,-400.0,0.00013917,2]
[361582563,1747623068059,-400.0,0.00013917,2]
[361582564,1747623068069,-400.0,0.00013917,2]
[361582565,1747623068078,-191.098067,0.00013917,2]
[361582566,1747623068087,-191.098067,0.00013917,2]
[361582567,1747623068097,-491.3,0.00013917,2]
[361582568,1747623068106,-762.24,0.00013917,2]
[361582569,1747623068115,-400.0,0.00013917,2]
[361582570,1747623068124,-548.93,0.00013917,2]
[361582571,1747623068134,-400.0,0.00013917,2]
[361582572,1747623068143,-729.82,0.00013917,2]
[361582573,1747623068152,-626.74,0.00013917,2]
[361582574,1747623068161,-400.0,0.00013917,2]
[361582575,1747623068171,-400.0,0.00013917,2]
[361582576,1747623068180,-596.03,0.00013917,2]
[361582577,1747623068189,-400.0,0.00013917,2]
[361582578,1747623068198,-991.02,0.00013917,2]
[361582579,1747623068208,-400.0,0.00013917,2]
[361582580,1747623068218,-151.0,0.00013917,2]
[361582581,1747623068227,-400.0,0.00013917,2]
[361582582,1747623068236,-151.0,0.00013917,2]
[361582583,1747623068247,-434.24,0.00013917,2]
[361582584,1747623068257,-480.62,0.00013917,2]
[361582585,1747623068266,-400.0,0.00013917,2]
[361582586,1747623068277,-400.0,0.00013917,2]
[361582587,1747623068286,-580.42,0.00013917,2]
[361582588,1747623068296,-975.65,0.00013917,2]
[361582589,1747623068305,-1056.35,0.00013917,2]
[361582590,1747623068315,-400.0,0.00013917,2]
[361582591,1747623068325,-400.0,0.00013917,2]
[361582592,1747623068336,-400.0,0.00013917,2]
[361582593,1747623068346,-719.26934,0.00013917,2]
[361582594,1747623068356,-719.26934,0.00013917,2]
[361582595,1747623068365,-494.91,0.00013917,2]
[361582596,1747623068375,-400.0,0.00013917,2]
[361582597,1747623068384,-662.77,0.00013917,2]
[361582598,1747623068394,-400.0,0.00013917,2]
[361582599,1747623068404,-719.26934,0.00013917,2]
[361582600,1747623068414,-719.26934,0.00013917,2]
[361582601,1747623068423,-1135.78,0.00013917,2]
[361582602,1747623068433,-482.41,0.00013917,2]
[361582603,1747623068443,-448.67,0.00013917,2]
[361582604,1747623068453,-400.0,0.00013917,2]
[361582605,1747623068462,-846.28,0.00013917,2]
[361582606,1747623068471,-400.0,0.00013917,2]
[361582607,1747623068481,-400.0,0.00013917,2]
[361582608,1747623068490,-1609.96,0.00013917,2]
[361582609,1747623068500,-695.61,0.00013917,2]
[361582610,1747623068511,-1023.78,0.00013917,2]
[361582611,1747623068521,-344.89150596,0.00013917,2]
[361582612,1747623068531,-481.44,0.00013917,2]
[361582613,1747623068540,-400.0,0.00013917,2]
[361582614,1747623068549,-652.8,0.00013917,2]
[361582615,1747623068559,-400.0,0.00013917,2]
[361582616,1747623068571,-1269.65,0.00013917,2]
[361582617,1747623068581,-1668.13,0.00013917,2]
[361582618,1747623068591,-422.82,0.00013917,2]
[361582619,1747623068600,-400.0,0.00013917,2]
[361582620,1747623068609,-400.0,0.00013917,2]
[361582621,1747623068619,-400.0,0.00013917,2]
[361582622,1747623068628,-400.0,0.00013917,2]
[361582623,1747623068637,-403.88352432,0.00013917,2]
[361582624,1747623068647,-1081.34,0.00013917,2]
[361582625,1747623068656,-552.8,0.00013917,2]
[361582626,1747623068666,-503.54,0.00013917,2]
[361582627,1747623068675,-631.05,0.00013917,2]
[361582628,1747623068685,-400.0,0.00013917,2]
[361582629,1747623068694,-662.96,0.00013917,2]
[361582630,1747623068703,-558.9,0.00013917,2]
[361582631,1747623068713,-729.2,0.00013917,2]
[361582632,1747623068722,-870.14,0.00013917,2]
[361582633,1747623068731,-400.0,0.00013917,2]
[361582634,1747623068740,-930.26,0.00013917,2]
[361582635,1747623068751,-400.0,0.00013917,2]
[361582636,1747623068760,-400.0,0.00013917,2]
[361582637,1747623068768,-609.16,0.00013917,2]
[361582638,1747623068778,-400.0,0.00013917,2]
[361582639,1747623068787,-8238.14,0.00013917,2]
[361582640,1747623068797,-400.0,0.00013917,2]
[361582641,1747623068806,-1271.66,0.00013917,2]
[361582642,1747623068816,-2324.57,0.00013917,2]
[361582643,1747623068825,-400.0,0.00013917,2]
[361582644,1747623068836,-400.0,0.00013917,2]
[361582645,1747623068845,-406.66917667,0.00013917,2]
[361582646,1747623068855,-305.239488,0.00013917,2]
[361582647,1747623068864,-783.82,0.00013917,2]
[361582648,1747623068873,-305.239488,0.00013917,2]
[361582649,1747623068883,-1183.45,0.00013917,2]
[361582650,1747623068892,-1079.23,0.00013917,2]
[361582651,1747623068901,-599.07,0.00013917,2]
[361582652,1747623068910,-410.07,0.00013917,2]
[361582653,1747623068919,-7849.09,0.00013917,2]
[361582654,1747623068928,-305.239488,0.00013917,2]
[361582655,1747623068937,-1517.51,0.00013917,2]
[361582656,1747623068947,-305.239488,0.00013917,2]
[361582657,1747623068956,-400.0,0.00013917,2]
[361582658,1747623068966,-644.82,0.00013917,2]
[361582659,1747623068979,-151.0,0.00013917,2]
[361582660,1747623068988,-540.54,0.00013917,2]
[361582661,1747623068997,-155.360462,0.00013917,2]
[361582662,1747623069007,-1195.86,0.00013917,2]
[361582663,1747623069017,-1576.04,0.00013917,2]
[361582664,1747623069026,-400.0,0.00013917,2]
[361582665,1747623069036,-519.49,0.00013917,2]
[361582666,1747623069046,-155.0212,0.00013917,2]
[361582667,1747623069056,-400.0,0.00013917,2]
[361582668,1747623069064,-1961.81,0.00013917,2]
[361582669,1747623069074,-818.28,0.00013917,2]
[361582670,1747623069086,-278.02,0.00013917,2]
[361582671,1747623069095,-1973.3,0.00013917,2]
[361582672,1747623069104,-963.95,0.00013917,2]
[361582673,1747623069114,-295.74524317,0.00013917,2]
[361582674,1747623069122,-459.56,0.00013917,2]
[361582675,1747623069132,-8948.8,0.00013917,2]
[361582676,1747623069141,-688.3,0.00013917,2]
[361582677,1747623069151,-400.0,0.00013917,2]
[361582678,1747623069160,-1138.13,0.00013917,2]
[361582679,1747623069170,-400.0,0.00013917,2]
[361582680,1747623069179,-440.17,0.00013917,2]
[361582681,1747623069188,-400.0,0.00013917,2]
[361582682,1747623069198,-400.0,0.00013917,2]
[361582683,1747623069207,-4052.06,0.00013917,2]
[361582684,1747623069217,-400.0,0.00013917,2]
[361582685,1747623069226,-400.0,0.00013917,2]
[361582686,1747623069236,-2652.63,0.00013917,2]
[361582687,1747623069246,-806.86,0.00013917,2]
[361582688,1747623069255,-7133.14,0.00013917,2]
[361582689,1747623069265,-400.0,0.00013917,2]
[361582690,1747623069274,-400.0,0.00013917,2]
[361582691,1747623069283,-400.0,0.00013917,2]
[361582692,1747623069292,-742.98,0.00013917,2]
[361582693,1747623069301,-966.77,0.00013917,2]
[361582694,1747623069310,-617.5,0.00013917,2]
[361582695,1747623069320,-1160.61,0.00013917,2]
[361582696,1747623069330,-607.01,0.00013917,2]
[361582697,1747623069339,-4437.38,0.00013917,2]
[361582698,1747623069349,-1338.03,0.00013917,2]
[361582699,1747623069358,-895.92,0.00013917,2]
[361582700,1747623069367,-400.0,0.00013917,2]
[361582701,1747623069376,-696.01,0.00013917,2]
[361582702,1747623069386,-4278.65,0.00013917,2]
[361582703,1747623069395,-400.0,0.00013917,2]
[361582704,1747623069404,-400.0,0.00013917,2]
[361582705,1747623069414,-400.0,0.00013917,2]
[361582706,1747623069423,-400.0,0.00013917,2]